fUST/lending_fUST_20251004
["ID","MTS","AMOUNT","RATE_DAILY","PERIOD"]
[389130493,1759585839857,-280.3763659,0.00019239,2]
[389130494,1759585839867,-500.0,0.00019239,2]
[389130495,1759585839877,-559.95494003,0.00019239,2]
[389130496,1759585839886,-151.0,0.00019239,2]
[389130497,1759585839897,-151.0,0.00019239,2]
[389130499,1759585839907,-151.0,0.00019239,2]
[389130500,1759585839917,-151.0,0.00019239,2]
[389130501,1759585839927,-151.0,0.00019239,2]
[389130502,1759585839937,-151.0,0.00019239,2]
[389130503,1759585839947,-151.0,0.00019239,2]
[389130504,1759585839957,-151.0,0.00019239,2]
[389130505,1759585839966,-151.0,0.00019239,2]
[389130506,1759585839975,-151.0,0.00019239,2]
[389130507,1759585839984,-151.0,0.00019239,2]
[389130508,1759585839993,-151.0,0.00019239,2]
[389130509,1759585840002,-151.0,0.00019239,2]
[389130510,1759585840011,-151.0,0.00019239,2]
[389130511,1759585840020,-151.0,0.00019239,2]
[389130512,1759585840030,-151.0,0.00019239,2]
[389130513,1759585840039,-151.0,0.00019239,2]
[389130514,1759585840048,-151.0,0.00019239,2]
[389130515,1759585840061,-151.0,0.00019239,2]
[389130516,1759585840072,-151.0,0.00019239,2]
[389130517,1759585840082,-440.89228745,0.00019248,2]
[389130518,1759585840092,-500.0,0.00019248,2]
[389130519,1759585840103,-500.0,0.00019248,2]
[389130520,1759585840112,-646.2,0.00019248,2]
[389130521,1759585840124,-908.49,0.00019248,2]
[389130522,1759585840134,-500.0,0.00019248,2]
[389130523,1759585840143,-500.0,0.00019248,2]
[389130524,1759585840153,-667.10600508,0.00019248,2]
[389130525,1759585840162,-500.0,0.00019248,2]
[389130526,1759585840172,-500.0,0.00019248,2]
[389130527,1759585840182,-500.0,0.00019248,2]
[389130528,1759585840192,-500.0,0.00019248,2]
[389130529,1759585840202,-500.0,0.00019249,2]
[389130530,1759585840212,-500.0,0.00019249,2]
[389130531,1759585840221,-500.0,0.00019249,2]
[389130533,1759585840231,-500.0,0.00019249,2]
[389130535,1759585840245,-500.0,0.00019249,2]
[389130536,1759585840255,-340.3737615,0.00019249,2]
[389130537,1759585840265,-500.0,0.00019249,2]
[389130538,1759585840274,-500.0,0.00019249,2]
[389130539,1759585840284,-500.0,0.00019249,2]
[389130540,1759585840294,-442.88149303,0.00019249,2]
[389130541,1759585840303,-500.0,0.00019249,2]
[389130542,1759585840313,-500.0,0.00019249,2]
[389130543,1759585840323,-500.0,0.00019249,2]
[389130544,1759585840332,-500.0,0.00019249,2]
[389130545,1759585840341,-597.36,0.00019249,2]
[389130546,1759585840351,-500.0,0.00019249,2]
[389130547,1759585840361,-500.0,0.00019249,2]
[389130548,1759585840370,-500.0,0.00019249,2]
[389130549,1759585840379,-1148.36,0.00019249,2]
[389130550,1759585840389,-500.0,0.00019249,2]
[389130552,1759585840398,-500.0,0.00019249,2]
[389130554,1759585840407,-500.0,0.00019249,2]
[389130556,1759585840417,-805.07,0.00019249,2]
[389130557,1759585840426,-500.0,0.00019249,2]
[389130559,1759585840435,-524.07,0.00019249,2]
[389130560,1759585840445,-500.0,0.00019249,2]
[389130561,1759585840454,-500.0,0.00019249,2]
[389130562,1759585840464,-565.79,0.00019249,2]
[389130563,1759585840474,-500.0,0.00019249,2]
[389130564,1759585840483,-500.0,0.00019249,2]
[389130565,1759585840492,-500.0,0.00019249,2]
[389130566,1759585840501,-500.0,0.00019249,2]
[389130567,1759585840511,-500.0,0.00019249,2]
[389130568,1759585840520,-500.0,0.00019249,2]
[389130569,1759585840530,-500.0,0.00019249,2]
[389130570,1759585840540,-500.0,0.00019249,2]
[389130571,1759585840550,-1246.84,0.00019249,2]
[389130572,1759585840559,-500.0,0.00019249,2]
[389130573,1759585840568,-533.47,0.00019249,2]
[389130574,1759585840580,-500.0,0.00019249,2]
[389130575,1759585840589,-500.0,0.00019249,2]
[389130576,1759585840598,-596.91,0.00019249,2]
[389130577,1759585840607,-500.0,0.00019249,2]
[389130578,1759585840616,-384.98250051,0.00019249,2]
[389130579,1759585840625,-500.0,0.00019249,2]
[389130580,1759585840635,-500.0,0.00019249,2]
[389130581,1759585840643,-708.93,0.00019249,2]
[389130582,1759585840653,-570.58955426,0.00019249,2]
[389130583,1759585840662,-500.0,0.00019249,2]
[389130584,1759585840671,-418.52187975,0.00019249,2]
[389130585,1759585840680,-500.0,0.00019249,2]
[389130586,1759585840698,-500.0,0.00019249,2]
[389130587,1759585840708,-648.9,0.00019249,2]
[389130588,1759585840717,-500.0,0.00019249,2]
[389130589,1759585840727,-500.0,0.00019249,2]
[389130590,1759585840738,-500.0,0.00019249,2]
[389130591,1759585840748,-794.69,0.00019249,2]
[389130592,1759585840758,-500.0,0.00019249,2]
[389130593,1759585840767,-500.0,0.00019249,2]
[389130594,1759585840778,-500.0,0.00019249,2]
[389130595,1759585840787,-615.67,0.00019249,2]
[389130596,1759585840798,-500.0,0.00019249,2]
[389130597,1759585840808,-1339.39,0.00019249,2]
[389130598,1759585840819,-892.86,0.00019249,2]
[389130599,1759585840829,-771.34,0.00019249,2]
[389130600,1759585840838,-500.0,0.00019249,2]
[389130601,1759585840847,-500.0,0.00019249,2]
[389130602,1759585840856,-230.2483003,0.00019249,2]
[389130603,1759585840865,-500.0,0.00019249,2]
[389130604,1759585840875,-500.0,0.00019249,2]
[389130605,1759585840884,-500.0,0.00019249,2]
[389130606,1759585840894,-871.79,0.00019249,2]
[389130607,1759585840903,-696.64,0.00019249,2]
[389130608,1759585840912,-500.0,0.00019249,2]
[389130609,1759585840922,-500.0,0.00019249,2]
[389130610,1759585840934,-500.0,0.00019249,2]
[389130611,1759585840944,-500.0,0.00019249,2]
[389130612,1759585840955,-500.0,0.00019249,2]
[389130613,1759585840966,-500.0,0.00019249,2]
[389130614,1759585840977,-4466.38,0.00019249,2]
[389130615,1759585840988,-558.83,0.00019249,2]
[389130616,1759585840998,-646.02,0.00019249,2]
[389130617,1759585841007,-2478.44,0.00019249,2]
[389130618,1759585841016,-500.0,0.00019249,2]
[389130619,1759585841026,-500.0,0.00019249,2]
[389130620,1759585841035,-265.05340603,0.00019249,2]
[389130621,1759585841045,-500.0,0.00019249,2]
[389130622,1759585841055,-860.18,0.00019249,2]
[389130623,1759585841068,-502.34,0.00019249,2]
[389130624,1759585841077,-2540.63,0.00019249,2]
[389130625,1759585841086,-500.0,0.00019249,2]
[389130626,1759585841095,-689.64,0.00019249,2]
[389130627,1759585841105,-658.82,0.00019249,2]
[389130628,1759585841114,-522.28,0.00019249,2]
[389130629,1759585841123,-500.0,0.00019249,2]
[389130630,1759585841133,-273300.3215969,0.0001925,2]
[389130631,1759585841143,-503.7740892,0.00019273,2]
[389130632,1759585841151,-500.0,0.00019273,2]
[389130633,1759585841161,-500.0,0.00019273,2]
[389130634,1759585841171,-271.96001525,0.00019273,2]
[389130635,1759585841180,-500.0,0.00019273,2]
[389130636,1759585841189,-500.0,0.00019273,2]
[389130637,1759585841199,-500.0,0.00019273,2]
[389130638,1759585841209,-500.0,0.00019273,2]
[389130639,1759585841220,-500.0,0.00019273,2]
[389130640,1759585841230,-500.0,0.00019273,2]
[389130641,1759585841241,-500.0,0.00019273,2]
[389130642,1759585841252,-500.0,0.00019273,2]
[389130643,1759585841261,-510.16934292,0.00019273,2]
[389130644,1759585841270,-150.0,0.00019273,2]
[389130645,1759585841280,-500.0,0.00019273,2]
[389130646,1759585841289,-500.0,0.00019273,2]
[389130647,1759585841298,-500.0,0.00019273,2]
[389130648,1759585841308,-500.0,0.00019273,2]
[389130649,1759585841317,-500.0,0.00019273,2]
[389130650,1759585841326,-500.0,0.00019273,2]
[389130651,1759585841335,-500.0,0.00019273,2]
[389130652,1759585841344,-500.0,0.00019273,2]
[389130653,1759585841354,-500.0,0.00019273,2]
[389130654,1759585841363,-500.0,0.00019273,2]
[389130655,1759585841373,-500.0,0.00019273,2]
[389130656,1759585841383,-500.0,0.00019273,2]
[389130657,1759585841392,-500.0,0.00019273,2]
[389130658,1759585841401,-500.0,0.00019273,2]
[389130659,1759585841411,-255.54,0.00019274,2]
[389130660,1759585841420,-2043.1455857,0.00019293,2]
[389130661,1759585841429,-924.7191359,0.00019293,2]
[389130662,1759585841438,-500.0,0.00019346,2]
[389130663,1759585841448,-500.0,0.00019346,2]
[389130664,1759585841457,-500.0,0.00019346,2]
[389130665,1759585841466,-485.4260871,0.00019346,2]
[389130666,1759585841476,-500.0,0.00019346,2]
[389130667,1759585841485,-500.0,0.00019346,2]
[389130668,1759585841495,-500.0,0.00019346,2]
[389130669,1759585841504,-2578.77,0.00019346,2]
[389130670,1759585841514,-868.76,0.00019346,2]
[389130671,1759585841523,-541.93,0.00019346,2]
[389130672,1759585841532,-500.0,0.00019346,2]
[389130673,1759585841542,-3849.91,0.00019346,2]
[389130674,1759585841551,-3116.59,0.00019346,2]
[389130675,1759585841561,-500.0,0.00019347,2]
[389130676,1759585841571,-500.0,0.00019347,2]
[389130677,1759585841581,-155.0,0.00019347,2]
[389130678,1759585841591,-1374.01,0.00019347,2]
[389130679,1759585841602,-500.0,0.00019347,2]
[389130680,1759585841612,-500.0,0.00019347,2]
[389130681,1759585841621,-668.76,0.00019347,2]
[389130682,1759585841631,-287.50953385,0.00019348,2]
[389130683,1759585841641,-500.0,0.00019348,2]
[389130684,1759585841650,-500.0,0.00019348,2]
[389130685,1759585841660,-500.0,0.00019348,2]
[389130686,1759585841669,-530.69,0.00019348,2]
[389130687,1759585841679,-500.0,0.00019348,2]
[389130688,1759585841690,-649.09,0.00019348,2]
[389130689,1759585841699,-829.06,0.00019348,2]
[389130690,1759585841709,-500.0,0.00019348,2]
[389130691,1759585841719,-529.91107372,0.00019348,2]
[389130692,1759585841728,-528.12,0.00019348,2]
[389130693,1759585841738,-500.0,0.00019348,2]
[389130694,1759585841748,-605.27,0.00019348,2]
[389130695,1759585841757,-500.0,0.00019348,2]
[389130696,1759585841766,-500.0,0.00019348,2]
[389130697,1759585841776,-500.0,0.00019348,2]
[389130698,1759585841785,-500.0,0.00019348,2]
[389130699,1759585841794,-654.05,0.00019348,2]
[389130700,1759585841804,-500.0,0.00019348,2]
[389130701,1759585841814,-1951.86,0.00019348,2]
[389130702,1759585841823,-500.0,0.00019348,2]
[389130703,1759585841834,-1242.11,0.00019348,2]
[389130704,1759585841843,-1079.46,0.00019348,2]
[389130705,1759585841853,-500.0,0.00019348,2]
[389130706,1759585841865,-500.0,0.00019348,2]
[389130707,1759585841874,-527.1,0.00019348,2]
[389130708,1759585841883,-463.24346278,0.00019348,2]
[389130709,1759585841893,-500.0,0.00019348,2]
[389130710,1759585841903,-500.0,0.00019348,2]
[389130711,1759585841913,-500.0,0.00019348,2]
[389130712,1759585841922,-2044.33,0.00019348,2]
[389130713,1759585841933,-761.66,0.00019348,2]
[389130714,1759585841943,-500.0,0.00019348,2]
[389130715,1759585841952,-500.0,0.00019348,2]
[389130716,1759585841961,-500.0,0.00019348,2]
[389130717,1759585841970,-1141.06,0.00019348,2]
[389130718,1759585841979,-500.0,0.00019348,2]
[389130719,1759585841988,-795.83,0.00019348,2]
[389130720,1759585841998,-500.0,0.00019348,2]
[389130721,1759585842007,-500.0,0.00019348,2]
[389130722,1759585842017,-576.68,0.00019348,2]
[389130723,1759585842027,-500.0,0.00019348,2]
[389130724,1759585842036,-740.45,0.00019348,2]
[389130725,1759585842046,-737.03,0.00019348,2]
[389130726,1759585842059,-1993.73,0.00019348,2]
[389130727,1759585842069,-631.76,0.00019348,2]
[389130728,1759585842080,-840.36,0.00019348,2]
[389130729,1759585842089,-533.70716303,0.00019348,2]
[389130730,1759585842099,-500.0,0.00019348,2]
[389130731,1759585842109,-500.0,0.00019348,2]
[389130732,1759585842118,-1033.6,0.00019348,2]
[389130733,1759585842128,-500.0,0.00019348,2]
[389130734,1759585842139,-500.0,0.00019348,2]
[389130735,1759585842148,-551.71955659,0.00019348,2]
[389130736,1759585842321,-500.0,0.00019348,2]
[389130737,1759585842331,-500.0,0.00019348,2]
[389130738,1759585842340,-315.91581834,0.00019348,2]
[389130739,1759585842357,-184.08418166,0.00019348,2]
[389130740,1759585842366,-500.0,0.00019348,2]
[389130741,1759585842376,-327.63528274,0.00019348,2]
[389130742,1759585842402,-172.36471726,0.00019348,2]
[389130743,1759585842411,-500.0,0.00019348,2]
[389130744,1759585842420,-500.0,0.00019348,2]
[389130745,1759585842430,-500.0,0.00019348,2]
[389130746,1759585842439,-500.0,0.00019348,2]
[389130747,1759585842448,-500.0,0.00019348,2]
[389130748,1759585842458,-1474.49,0.00019348,2]
[389130749,1759585842467,-500.0,0.00019348,2]
[389130750,1759585842476,-500.0,0.00019348,2]
[389130751,1759585842486,-500.0,0.00019348,2]
[389130752,1759585842495,-500.0,0.00019348,2]
[389130753,1759585842504,-1560.68,0.00019348,2]
[389130754,1759585842514,-500.0,0.00019348,2]
[389130755,1759585842523,-500.0,0.00019348,2]
[389130756,1759585842533,-500.0,0.00019348,2]
[389130757,1759585842542,-500.0,0.00019348,2]
[389130758,1759585842551,-500.0,0.00019348,2]
[389130759,1759585842561,-593.73,0.00019348,2]
[389130760,1759585842570,-500.0,0.00019348,2]
[389130761,1759585842579,-460.204294,0.00019348,2]
[389130762,1759585842589,-500.0,0.00019348,2]
[389130763,1759585842598,-500.0,0.00019348,2]
[389130764,1759585842608,-500.0,0.00019348,2]
[389130765,1759585842618,-500.0,0.00019348,2]
[389130766,1759585842627,-500.0,0.00019348,2]
[389130767,1759585842638,-500.0,0.00019348,2]
[389130768,1759585842647,-500.0,0.00019348,2]
[389130769,1759585842656,-500.0,0.00019348,2]
[389130770,1759585842666,-500.0,0.00019348,2]
[389130771,1759585842675,-500.0,0.00019348,2]
[389130772,1759585842685,-500.0,0.00019348,2]
[389130773,1759585842695,-500.0,0.00019348,2]
[389130774,1759585842706,-500.0,0.00019348,2]
[389130775,1759585842715,-500.0,0.00019348,2]
[389130776,1759585842724,-106.75952123,0.00019348,2]
[389130777,1759585842735,-393.24047877,0.00019348,2]
[389130779,1759585842746,-500.0,0.00019348,2]
[389130781,1759585842755,-500.0,0.00019348,2]
[389130783,1759585842764,-500.0,0.00019348,2]
[389130784,1759585842773,-1810.45,0.00019348,2]
[389130785,1759585842783,-500.0,0.00019348,2]
[389130786,1759585842793,-500.0,0.00019348,2]
[389130787,1759585842803,-14.06716284,0.00019348,2]
[389130801,1759585842967,-416.31000001,0.00018998,2]
[389130803,1759585842979,-83.68999999,0.00018998,2]
[389130804,1759585842989,-448.68718589,0.00019348,2]
[389130805,1759585843000,-37.24565127,0.00019348,2]
[389130806,1759585843009,-500.0,0.00019348,2]
[389130807,1759585843019,-500.0,0.00019348,2]
[389130808,1759585843028,-297.76320921,0.00019348,2]
[389130809,1759585843037,-271.96358083,0.00019348,2]
[389130810,1759585843049,-228.03641917,0.00019348,2]
[389130811,1759585843060,-500.0,0.00019348,2]
[389130812,1759585843072,-500.0,0.00019348,2]
[389130813,1759585843082,-500.0,0.00019348,2]
[389130814,1759585843091,-500.0,0.00019348,2]
[389130815,1759585843100,-609.66,0.00019348,2]
[389130816,1759585843110,-1171.38,0.00019348,2]
[389130817,1759585843120,-500.0,0.00019348,2]
[389130818,1759585843130,-637.52,0.00019348,2]
[389130819,1759585843141,-424.07645011,0.00019348,2]
[389130820,1759585843153,-75.92354989,0.00019348,2]
[389130821,1759585843162,-500.0,0.00019348,2]
[389130822,1759585843172,-500.0,0.00019348,2]
[389130823,1759585843181,-500.0,0.00019348,2]
[389130824,1759585843191,-361.3008681,0.00019348,2]
[389130828,1759585843486,-439.35909999,0.00019249,2]
[389130829,1759585843505,-60.64090001,0.00019249,2]
[389130830,1759585843515,-138.6991319,0.00019348,2]
[389130831,1759585843525,-500.0,0.00019348,2]
[389130832,1759585843535,-636.36,0.00019348,2]
[389130834,1759585843544,-500.0,0.00019348,2]
[389130835,1759585843553,-500.0,0.00019348,2]
[389130836,1759585843562,-146.4535252,0.00019348,2]
[389130854,1759585864435,1057.21139757,0.00018694,2]
[389130858,1759585889665,-8258.8269588,0.000189,2]
[389130860,1759585891418,-10000.01,0.000189,2]
[389130863,1759585893550,-10000.01,0.000189,2]
[389130865,1759585910718,-5000.0,0.00018711,2]
[389130866,1759585910764,-0.01,0.00018898,2]
[389130867,1759585911019,5000.0,0.00018694,2]
[389130868,1759585911056,-976.52769514,0.00018898,2]
[389130869,1759585911115,-3046.95460972,0.000189,2]
[389130871,1759585920647,-5000.0,0.00018711,2]
[389130872,1759585920690,-0.01,0.000189,2]
[389130873,1759585920769,-10000.01,0.000189,2]
[389130877,1759585934401,5000.0,0.00018693,2]
[389130879,1759585942291,5000.0,0.00018693,2]
[389130882,1759585957776,0.01,0.00018693,2]
[389130883,1759585957802,4999.99,0.00018693,2]
[389130885,1759585965780,5000.0,0.00018693,2]
[389130887,1759585971170,-586.91,0.0001889,3]
[389130888,1759585971202,-293.45,0.0001889,3]
[389130889,1759585971233,-880.4,0.0001889,3]
[389130890,1759585971262,-300.0,0.00018899,2]
[389130891,1759585971292,-1200.0,0.00018899,2]
[389130892,1759585971322,-353.86010605,0.00018899,2]
[389130893,1759585971352,-228.66719406,0.00018899,2]
[389130894,1759585971383,-500.0,0.00018899,2]
[389130895,1759585971414,-571.17454285,0.00018899,2]
[389130896,1759585971654,-500.0,0.00018899,2]
[389130897,1759585971688,-297.48560079,0.00018899,2]
[389130898,1759585971722,-231.9605532,0.00018899,2]
[389130899,1759585971759,-500.0,0.00018899,2]
[389130900,1759585971791,-500.0,0.00018899,2]
[389130901,1759585971821,-375.2175631,0.00018899,2]
[389130902,1759585971853,-500.0,0.00018899,2]
[389130903,1759585971882,-222.16217235,0.00018899,2]
[389130904,1759585971912,-381.19953122,0.00018899,2]
[389130905,1759585971944,-500.0,0.00018899,2]
[389130906,1759585971978,-153.60054115,0.00018899,2]
[389130908,1759585973245,-1847.86439046,0.000189,2]
[389130909,1759585973294,-10000.01,0.000189,2]
[389130911,1759585977066,-10000.01,0.000189,2]
[389130912,1759585977202,-10000.01,0.000189,2]
[389130916,1759585981219,-5000.0,0.00018711,2]
[389130917,1759585981263,-0.01,0.000189,2]
[389130918,1759585981492,-10000.01,0.000189,2]
[389130919,1759585981677,-10000.01,0.000189,2]
[389130922,1759585995237,-1262.7872862,0.00018513,2]
[389130923,1759585995266,-300.0,0.000187,2]
[389130924,1759585995295,-300.0,0.00018899,2]
[389130925,1759585995371,-6274.4354276,0.000189,2]
[389130927,1759585995403,-10000.01,0.000189,2]
[389130928,1759585999398,151.0,0.000173,2]
[389130929,1759585999695,151.0,0.000164,2]
[389130930,1759585999996,151.0,0.000155,2]
[389130931,1759586000425,151.0,0.000146,2]
[389130933,1759586003261,-151.0,0.000182,2]
[389130934,1759586003308,-9698.01,0.000189,2]
[389130935,1759586003372,-10000.01,0.000189,2]
[389130936,1759586003549,-10000.01,0.000189,2]
[389130937,1759586003662,-10000.01,0.000189,2]
[389130938,1759586003801,-10000.01,0.000189,2]
[389130939,1759586003942,-10000.01,0.000189,2]
[389130940,1759586004094,-10000.01,0.000189,2]
[389130941,1759586004212,-10000.01,0.000189,2]
[389130942,1759586006393,-10000.01,0.000189,2]
[389130946,1759586028380,-10000.01,0.000189,2]
[389130947,1759586028786,-10000.01,0.000189,2]
[389130948,1759586028817,-10000.01,0.000189,2]
[389130949,1759586028832,-10000.01,0.000189,2]
[389130950,1759586028902,-10000.01,0.000189,2]
[389130951,1759586029043,-10000.01,0.000189,2]
[389130952,1759586029153,-10000.01,0.000189,2]
[389130953,1759586034415,-10000.01,0.000189,2]
[389130958,1759586062654,-1384.51596097,0.00018711,2]
[389130959,1759586062689,-300.0,0.00018899,2]
[389130960,1759586062745,-6630.97807806,0.000189,2]
[389130961,1759586062882,-10000.01,0.000189,2]
[389130962,1759586063247,-10000.01,0.000189,2]
[389130963,1759586063387,-10000.01,0.000189,2]
[389130964,1759586063520,-10000.01,0.000189,2]
[389130965,1759586063646,-10000.01,0.000189,2]
[389130966,1759586063765,-10000.01,0.000189,2]
[389130967,1759586063880,-10000.01,0.000189,2]
[389130969,1759586068554,-212.972272,0.00018174,2]
[389130970,1759586068593,-9574.065456,0.000189,2]
[389130983,1759586129115,-1200.0,0.00018899,2]
[389130985,1759586137491,7600.01,0.00018894,2]
[389130986,1759586137520,6219.9116053,0.00018894,2]
[389130988,1759586145059,-4668.52507936,0.000189,2]
[389130989,1759586145092,-300.0,0.000189,2]
[389130992,1759586161338,-300.0,0.00019099,2]
[389130993,1759586161368,-300.0,0.00019099,2]
[389130994,1759586161399,-300.0,0.00019099,2]
[389130995,1759586161429,-151.0,0.000191,2]
[389130996,1759586161460,-160.06703584,0.00019177,2]
[389130997,1759586161492,-247.70207423,0.00019177,2]
[389130998,1759586161529,-183.73339346,0.00019177,2]
[389130999,1759586161560,-500.0,0.00019178,2]
[389131000,1759586161590,-500.0,0.00019178,2]
[389131001,1759586161620,-805.67,0.00019178,2]
[389131002,1759586161839,-500.0,0.00019178,2]
[389131003,1759586161871,-656.92,0.00019178,2]
[389131004,1759586162271,-1054.74,0.00019178,2]
[389131005,1759586162301,-500.0,0.00019178,2]
[389131006,1759586162331,-500.0,0.00019178,2]
[389131007,1759586162360,-500.0,0.00019178,2]
[389131008,1759586162391,-895.73,0.00019178,2]
[389131009,1759586162422,-500.0,0.00019178,2]
[389131010,1759586162453,-500.0,0.00019178,2]
[389131011,1759586162679,-2100.06,0.00019178,2]
[389131012,1759586162708,-576.16,0.00019178,2]
[389131013,1759586162737,-500.0,0.00019178,2]
[389131014,1759586162768,-500.0,0.00019178,2]
[389131015,1759586162798,-1219.3,0.00019178,2]
[389131016,1759586162963,-500.0,0.00019178,2]
[389131017,1759586162997,-500.0,0.00019178,2]
[389131018,1759586163030,-844.67,0.00019178,2]
[389131019,1759586163062,-637.4,0.00019178,2]
[389131020,1759586163096,-795.9,0.00019178,2]
[389131021,1759586163129,-1112.27,0.00019178,2]
[389131022,1759586163161,-526.08,0.00019178,2]
[389131024,1759586164174,-536.72147794,0.00019178,2]
[389131025,1759586164205,-1137.96,0.00019178,2]
[389131026,1759586164238,-500.0,0.00019178,2]
[389131027,1759586164269,-1087.71,0.00019178,2]
[389131028,1759586164301,-1596.97704412,0.00019178,2]
[389131029,1759586164614,-281.27295588,0.00019178,2]
[389131030,1759586164646,-1004.09,0.00019178,2]
[389131031,1759586164676,-500.0,0.00019178,2]
[389131032,1759586164709,-3143.93,0.00019178,2]
[389131033,1759586171222,-500.0,0.00019178,2]
[389131034,1759586171260,-500.0,0.00019178,2]
[389131035,1759586171291,-500.0,0.00019178,2]
[389131036,1759586171324,-3073.61,0.00019178,2]
[389131037,1759586171504,-852.79,0.00019178,2]
[389131038,1759586171536,-620.05,0.00019178,2]
[389131039,1759586171567,-500.0,0.00019178,2]
[389131040,1759586171598,-736.01,0.00019178,2]
[389131041,1759586171629,-1128.13,0.00019178,2]
[389131042,1759586171660,-1044.3,0.00019178,2]
[389131043,1759586171709,-500.0,0.00019178,2]
[389131044,1759586171740,-500.0,0.00019178,2]
[389131045,1759586171771,-500.0,0.00019178,2]
[389131046,1759586171802,-500.0,0.00019178,2]
[389131047,1759586171833,-2243.34,0.00019178,2]
[389131048,1759586171864,-500.0,0.00019178,2]
[389131049,1759586171895,-13.33,0.00019178,2]
[389131051,1759586177315,-854.47048323,0.00019078,2]
[389131052,1759586177346,-486.67,0.00019178,2]
[389131053,1759586177378,-500.0,0.00019178,2]
[389131054,1759586177410,-670.89,0.00019178,2]
[389131055,1759586177442,-500.0,0.00019178,2]
[389131056,1759586177474,-750.93,0.00019178,2]
[389131057,1759586177507,-500.0,0.00019178,2]
[389131058,1759586177540,-500.0,0.00019178,2]
[389131059,1759586177680,-500.0,0.00019178,2]
[389131060,1759586177713,-500.0,0.00019178,2]
[389131061,1759586177748,-500.0,0.00019178,2]
[389131062,1759586177780,-500.0,0.00019178,2]
[389131063,1759586177813,-1307.12,0.00019178,2]
[389131064,1759586177846,-559.59156843,0.00019178,2]
[389131065,1759586177877,-500.0,0.00019178,2]
[389131066,1759586177909,-500.0,0.00019178,2]
[389131067,1759586178105,-1410.17,0.00019178,2]
[389131068,1759586178138,-500.0,0.00019178,2]
[389131069,1759586178172,-500.0,0.00019178,2]
[389131070,1759586178204,-911.29,0.00019178,2]
[389131071,1759586178239,-500.0,0.00019178,2]
[389131072,1759586178271,-500.0,0.00019178,2]
[389131073,1759586178306,-413.77,0.00019178,2]
[389131074,1759586178419,-529.55,0.00019178,2]
[389131075,1759586178451,-725.13,0.00019178,2]
[389131076,1759586178482,-473.24472904,0.00019178,2]
[389131077,1759586178514,-500.0,0.00019178,2]
[389131078,1759586178546,-791.55,0.00019178,2]
[389131079,1759586178577,-500.0,0.00019178,2]
[389131080,1759586178608,-500.0,0.00019178,2]
[389131081,1759586178640,-936.15054192,0.00019178,2]
[389131082,1759586178787,-88.75945808,0.00019178,2]
[389131083,1759586178818,-500.0,0.00019178,2]
[389131084,1759586178849,-1449.33,0.00019178,2]
[389131085,1759586178882,-1828.78,0.00019178,2]
[389131086,1759586178914,-500.0,0.00019178,2]
[389131087,1759586178946,-500.0,0.00019178,2]
[389131088,1759586179015,-500.0,0.00019178,2]